Cogmind - Beta 10 X1 @@@ ROGUE MODE // 2020.06.16 @ 00:44:35 Player: Daniexpert Result: Escaped! Performance ------------- Evolutions (9) 4500 Regions Visited (26) 5200 Robots Destroyed (186) 930 Value Destroyed (4984) 4984 Prototype IDs (63) 1260 Alien Tech Used (0) 0 Bonus (4897) 4897 TOTAL SCORE: 21771 Bonus ------- High Alert Combat Kills 297 Aligned with FarCom 300 Met Data Miner 300 Met Warlord at Base 500 MAIN.C Attacked Warlord 500 Win 3000 Cogmind --------- Core Integrity 1600/1600 Matter 300/300 Energy 114/130 System Corruption 0% Temperature Cool (16) Movement Flying (21) Location To Epsilon Eridani Parts ------- > --- POWER (1) -------- Mini Fusion Reactor > --- PROPULSION (4) --- Experimental Cesium-ion Thruster Experimental Cesium-ion Thruster Cooled Field Propulsion Drive Cooled Impulse Thruster > --- UTILITY (18) ----- Medium Storage Unit Advanced Transmission Jammer Cloaking Device Improved Propulsion Shielding Experimental Utility Shielding Layered Light Armor Plating Hacking Suite Hacking Suite Hacking Suite Hacking Suite Hacking Suite Improved Hacking Suite Improved Hacking Suite Advanced Hacking Suite Improved System Shield Advanced System Shield Advanced System Shield > --- WEAPON (2) ------- Improved Arc Projector Enhanced Force Lance > --- INVENTORY (8) ---- Micro Fission Core Diametric Drive Q-thruster Q-thruster Improved System Restoration Module Fusion Bomb Launcher Enhanced Force Lance Peak State ------------ > --- POWER ------------ Mini Fusion Reactor > --- PROPULSION ------- Experimental Cesium-ion Thruster Experimental Cesium-ion Thruster Cooled Field Propulsion Drive Cooled Impulse Thruster > --- UTILITY ---------- Medium Storage Unit Advanced Transmission Jammer Cloaking Device Improved Propulsion Shielding Experimental Utility Shielding Layered Light Armor Plating Hacking Suite Hacking Suite Hacking Suite Hacking Suite Hacking Suite Improved Hacking Suite Improved Hacking Suite Advanced Hacking Suite Improved System Shield Advanced System Shield Advanced System Shield > --- WEAPON ----------- Improved Arc Projector Enhanced Force Lance > --- INVENTORY -------- Micro Fission Core Diametric Drive Q-thruster Q-thruster Improved System Restoration Module Fusion Bomb Launcher Enhanced Force Lance [Rating: 132] Favorites ----------- Power Light Fission Core Engine Reinforced Ion Engine Power Core Light Fission Core Reactor Mini Fusion Reactor Propulsion Improved VTOL Module Treads Light Treads Leg Aluminum Leg Wheel Wheel Flight Unit Improved VTOL Module Utility Hacking Suite Device Advanced Transmission Jammer Storage Medium Storage Unit Processor Enhanced Optical Array Hackware Hacking Suite Protection Experimental Utility Shielding Weapon Greatsword Energy Gun Improved Arc Projector Energy Cannon Ion Cannon Ballistic Gun Improved Assault Rifle Launcher Rocket Launcher Special Weapon Mining Laser Slashing Weapon Greatsword Piercing Weapon Enhanced Force Lance Build | -11 -10 -10 -9 -9 -9 -8 -8 -7 -6 -6 -6 -6 -6 -6 -5 -5 -5 -5 -5 -4 -4 -4 -4 -3 -2 -1 ------- Run | Scr Mat Min Mat Min Exi Min Mat Fac Fac Was Fac Low Low Dat Pro Fac Upp Upp War Pro Fac Was Fac Res Res Acc Slots Evolved 18 | . . . 2 . . . 2 2 2 . . . . . . 2 . . . . 2 . . 2 2 2 Power . | . . . . . . . . . . . . . . . . . . . . . . . . . . . Propulsion 2 | . . . 1 . . . . 1 . . . . . . . . . . . . . . . . . . Utility 16 | . . . 1 . . . 2 1 2 . . . . . . 2 . . . . 2 . . 2 2 2 Weapon . | . . . . . . . . . . . . . . . . . . . . . . . . . . . Parts Attached 280 | 6 13 2 57 3 3 9 29 37 4 . 6 7 1 . . 16 4 4 10 8 26 3 10 6 14 2 Power 18 | 1 1 . 6 1 . . . 2 . . 1 . . . . 1 . . . 1 1 1 1 1 . . Engine 11 | 1 1 . 6 1 . . . 2 . . . . . . . . . . . . . . . . . . Core 6 | . . . . . . . . . . . 1 . . . . 1 . . . 1 1 1 1 . . . Reactor 1 | . . . . . . . . . . . . . . . . . . . . . . . . 1 . . Propulsion 70 | 2 2 2 20 1 1 2 4 10 . . 1 2 . . . 3 . . 1 1 11 . 1 2 4 . Treads 14 | . . . 12 1 1 . . . . . . . . . . . . . . . . . . . . . Leg 22 | 2 2 2 5 . . 2 4 5 . . . . . . . . . . . . . . . . . . Wheel 3 | . . . 3 . . . . . . . . . . . . . . . . . . . . . . . Hover . | . . . . . . . . . . . . . . . . . . . . . . . . . . . Flight 31 | . . . . . . . . 5 . . 1 2 . . . 3 . . 1 1 11 . 1 2 4 . Utility 103 | 1 3 . 7 . . . 10 12 4 . 4 5 . . . 11 2 4 9 4 11 . 5 2 7 2 Device 35 | . . . 1 . . . 2 3 2 . 1 5 . . . 2 2 1 5 2 4 . 2 . 2 1 Storage 13 | 1 3 . 1 . . . 4 2 . . . . . . . 1 . . . . . . 1 . . . Processor 3 | . . . . . . . . 1 1 . . . . . . . . . . . . . . . 1 . Hackware 19 | . . . . . . . . 4 1 . 3 . . . . 5 . . . . 3 . . 2 1 . Protection 33 | . . . 5 . . . 4 2 . . . . . . . 3 . 3 4 2 4 . 2 . 3 1 Artifact . | . . . . . . . . . . . . . . . . . . . . . . . . . . . Weapon 89 | 2 7 . 24 1 2 7 15 13 . . . . 1 . . 1 2 . . 2 3 2 3 1 3 . Energy Gun 14 | 2 2 . 6 . . . 1 1 . . . . . . . . . . . . . . . . 2 . Energy Cannon 5 | . . . . . . . 4 1 . . . . . . . . . . . . . . . . . . Ballistic Gun 33 | . 4 . 13 . . 4 5 7 . . . . . . . . . . . . . . . . . . Ballistic Cannon . | . . . . . . . . . . . . . . . . . . . . . . . . . . . Launcher 17 | . 1 . 3 . 2 2 4 2 . . . . . . . . 1 . . 1 . . . 1 . . Special Weapon 6 | . . . 2 1 . 1 1 1 . . . . . . . . . . . . . . . . . . Impact Weapon . | . . . . . . . . . . . . . . . . . . . . . . . . . . . Slashing Weapon 9 | . . . . . . . . 1 . . . . 1 . . 1 1 . . 1 3 . 1 . . . Piercing Weapon 5 | . . . . . . . . . . . . . . . . . . . . . . 2 2 . 1 . Special Melee Weapon . | . . . . . . . . . . . . . . . . . . . . . . . . . . . Unidentified Prototypes 10 | . . . 1 . . . 3 1 . . . . . . . . . . 4 . 1 . . . . . Parts Lost 43 | . 3 4 14 2 . . 4 . . . 1 . . . 1 . . . . 2 10 . . . 2 . Power 3 | . . 1 . 1 . . . . . . . . . . . . . . . 1 . . . . . . Propulsion 17 | . 1 2 7 1 . . . . . . . . . . . . . . . . 4 . . . 2 . Utility 11 | . . . 3 . . . 1 . . . 1 . . . 1 . . . . . 5 . . . . . Weapon 12 | . 2 1 4 . . . 3 . . . . . . . . . . . . 1 1 . . . . . Highest Loss Streak 4 | . 1 4 4 2 . . 2 . . . 1 . . . 1 . . . . 2 4 . . . 1 . Average Slot Usage (%) 94 | . 99 99 96 99 78 100 96 96 87 93 92 90 93 93 92 93 94 94 94 93 87 96 94 94 96 95 Engine 5 | . 14 13 10 11 11 11 9 7 6 6 1 . . . . . . . . . . . . . . . Core 1 | . . . . . . . . . . . 4 6 6 6 6 5 5 5 5 4 5 5 4 1 . . Treads 3 | . . . 17 22 33 11 . . . . . . . . . . . . . . . . . . . . Leg 8 | . 28 28 4 . . 22 26 20 . . . . . . . . . . . . . . . . . . Wheel 1 | . . . 8 10 . . . . . . . . . . . . . . . . . . . . . . Flight 11 | . . . . . . . . 9 26 26 26 26 26 26 26 22 23 23 23 23 19 21 21 19 16 16 Device 4 | . . . 5 . . . 2 2 4 6 2 10 13 13 12 2 4 3 . 4 7 5 6 4 6 7 Storage 13 | . 27 28 22 22 22 22 28 16 6 6 6 6 6 6 6 5 5 5 5 5 5 5 5 4 4 4 Hackware 24 | . . . . . . . . 17 28 33 41 33 33 33 33 47 47 47 47 47 43 42 42 46 46 44 Protection 5 | . . . 4 11 11 11 13 6 . . . . . . . 2 . 2 5 . 1 10 8 9 7 11 Energy Gun 2 | . 14 13 4 9 . . . 1 . . . . . . . . . . . . . . . . 1 4 Ballistic Gun 5 | . 13 14 17 11 . 10 12 7 . . . . . . . . . . . . . . . . . . Slashing Weapon 1 | . . . . . . . . 2 6 6 6 6 6 6 6 4 4 5 5 4 4 5 . . . . Naked Turns . | . . . . . . . . . . . . . . . . . . . . . . . . . . . Heaviest Build 70 | 12 33 32 51 49 55 55 70 68 23 23 23 25 22 22 22 21 21 21 21 21 23 30 29 29 36 37 Greatest Support 90 | 20 20 20 20 10 63 63 77 90 24 24 24 26 24 24 24 24 24 24 29 29 39 39 46 46 48 48 Greatest Overweight (x) 16 | 1 1 1 5 16 . . 1 . . . . . . . . . . . 1 . . . . . . . Average Overweight (x) . | . . 1 3 4 . . . . . . . . . . . . . . . . . . . . . . Largest Inventory Capacity 24 | 6 14 14 20 16 16 16 24 20 8 8 8 8 8 8 8 8 8 8 8 8 8 8 8 8 8 8 Average Capacity 11 | 5 12 14 15 16 16 16 20 15 8 8 8 8 8 8 8 8 8 8 8 8 8 8 8 8 8 8 Most Carried 24 | 4 14 14 16 15 16 14 24 20 8 8 8 8 8 8 8 8 8 8 8 8 8 8 8 8 8 7 Average Carried 11 | 1 10 13 15 14 15 14 19 15 7 8 7 8 8 8 8 7 7 8 8 7 6 7 7 7 7 6 Final Capacity 20 | 6 14 14 16 16 16 16 20 8 8 8 8 8 8 8 8 8 8 8 8 8 8 8 8 8 8 8 Final Carried 16 | 4 14 12 15 14 14 14 16 8 8 8 8 8 8 8 8 8 8 8 8 6 7 8 8 8 7 7 Class Distribution -------------------- 39% | Wizard-Sprinter 23% | Mutant 10% | Hauler-Mutant 7% | Hacker-Sprinter 6% | Scavenger-Mutant 4% | Hacker-Mutant Dominant Class ---------------- Mutant | -10/Materials Mutant | -10/Mines Mutant | -9/Materials Scavenger-Mutant | -9/Mines Scavenger-Mutant | -9/Exiles Mutant | -8/Mines Hauler-Mutant | -8/Materials Hacker-Mutant | -7/Factory Hacker-Scout | -6/Factory Hacker-Scout | -6/Waste Wizard-Sprinter | -6/Factory Hacker-Sprinter | -6/Lower Caves Hacker-Sprinter | -6/Lower Caves Hacker-Mutant | -6/Data Miner Hacker-Sprinter | -5/Proximity Caves Wizard-Sprinter | -5/Factory Wizard-Sprinter | -5/Upper Caves Wizard-Sprinter | -5/Upper Caves Wizard-Sprinter | -5/Warlord Wizard-Sprinter | -4/Proximity Caves Wizard-Sprinter | -4/Factory Wizard-Sprinter | -4/Waste Wizard-Sprinter | -4/Factory Wizard-Sprinter | -3/Research Wizard-Sprinter | -2/Research Wizard-Sprinter | -1/Access Resources | -11 -10 -10 -9 -9 -9 -8 -8 -7 -6 -6 -6 -6 -6 -6 -5 -5 -5 -5 -5 -4 -4 -4 -4 -3 -2 -1 ----------- Run | Scr Mat Min Mat Min Exi Min Mat Fac Fac Was Fac Low Low Dat Pro Fac Upp Upp War Pro Fac Was Fac Res Res Acc Matter Collected 4901 | 260 309 . 1525 20 32 41 670 715 35 . 50 60 35 . . 124 116 30 110 . 184 . 233 . 322 30 Remotely . | . . . . . . . . . . . . . . . . . . . . . . . . . . . Salvage Created 6712 | 73 591 . 2166 . . 45 1122 1003 216 . . . . . . 132 22 . . . 226 . 233 . 407 476 Parts 403 | 1 40 . 124 . . 7 72 80 8 . . . . . . 12 4 . . . 5 . 12 . 18 20 Haulers Intercepted 16 | . 1 . 5 . . . 3 1 2 . . . . . . . . . . . 1 . . . . 3 Recyclers Shooed 2 | . . . 1 . . . 1 . . . . . . . . . . . . . . . . . . . Parts Field Recycled . | . . . . . . . . . . . . . . . . . . . . . . . . . . . Retrieved Matter . | . . . . . . . . . . . . . . . . . . . . . . . . . . . Parts Self-Destructed 39 | . . . . . . . . . . . . . . . . . 3 . 36 . . . . . . . Prevented 12 | . . . . . . . . . . . . . . . . . . . 12 . . . . . . . Kills | -11 -10 -10 -9 -9 -9 -8 -8 -7 -6 -6 -6 -6 -6 -6 -5 -5 -5 -5 -5 -4 -4 -4 -4 -3 -2 -1 ------- Run | Scr Mat Min Mat Min Exi Min Mat Fac Fac Was Fac Low Low Dat Pro Fac Upp Upp War Pro Fac Was Fac Res Res Acc Combat Hostiles Destroyed 119 | . 15 . 46 . . 4 23 18 . . . . . . . 3 5 . . . 2 . 1 . 2 . Melee 8 | . . . . . . . . . . . . . . . . 3 . . . . 2 . 1 . 2 . Guns 75 | . 12 . 41 . . . 11 11 . . . . . . . . . . . . . . . . . . Cannons 6 | . . . . . . . 6 . . . . . . . . . . . . . . . . . . . AOE 30 | . 3 . 5 . . 4 6 7 . . . . . . . . 5 . . . . . . . . . Classes Destroyed 13 | 1 7 . 3 . . . 1 1 . . . . . . . . . . . . . . . . . . Worker 12 | . 1 . 1 . . . 5 5 . . . . . . . . . . . . . . . . . . Builder 5 | . 1 . . . . . 1 3 . . . . . . . . . . . . . . . . . . Tunneler 2 | . . . 1 . . . . 1 . . . . . . . . . . . . . . . . . . Hauler 16 | . 1 . 5 . . . 3 1 2 . . . . . . . . . . . 1 . . . . 3 Recycler 6 | 1 . . 2 . . . . 1 . . . . . . . . . . . . . . 1 . 1 . Operator 3 | . 1 . 2 . . . . . . . . . . . . . . . . . . . . . . . Watcher 23 | . 1 . 4 . . . 3 3 1 . . . . . . 2 . . . . . . 1 . 3 5 Swarmer 50 | . 6 . 11 . . 4 13 8 . . . . . . . 3 5 . . . . . . . . . Grunt 43 | . 9 . 25 . . . 3 5 . . . . . . . . . . . . . . . . 1 . Brawler 1 | . . . 1 . . . . . . . . . . . . . . . . . . . . . . . Sentry 16 | . . . 9 . . . 5 . . . . . . . . . . . . . . . 1 . 1 . Hunter 4 | . . . . . . . 2 2 . . . . . . . . . . . . . . . . . . Programmer 5 | . . . . . . . . 3 . . . . . . . . . . . . 2 . . . . . Best Kill Streak 7 | 1 5 . 7 . . 4 6 6 2 . . . . . . 2 5 . . . 1 . 1 . 1 3 Combat Bots Only 5 | . 4 . 5 . . 4 5 4 . . . . . . . 2 5 . . . 1 . 1 . 1 . Max Kills in Single Turn 5 | 1 3 . 3 . . 4 3 5 1 . . . . . . 1 3 . . . 1 . 1 . 1 1 Gunslinging 1 | . . . 1 . . . . . . . . . . . . . . . . . . . . . . . Exploded 4 | . 3 . 3 . . 4 2 4 . . . . . . . . 3 . . . . . . . . . Melee 1 | . . . . . . . . . . . . . . . . 1 . . . . 1 . 1 . 1 . Uniques/NPCs Destroyed . | . . . . . . . . . . . . . . . . . . . . . . . . . . . Combat | -11 -10 -10 -9 -9 -9 -8 -8 -7 -6 -6 -6 -6 -6 -6 -5 -5 -5 -5 -5 -4 -4 -4 -4 -3 -2 -1 -------- Run | Scr Mat Min Mat Min Exi Min Mat Fac Fac Was Fac Low Low Dat Pro Fac Upp Upp War Pro Fac Was Fac Res Res Acc Damage Taken 8594 | . 782 197 2277 333 . 19 1434 932 . . 64 19 . . 23 223 124 95 . 268 954 . 294 108 448 . Core 1292 | . 124 9 207 143 . . 232 104 . . 17 . . . . 45 63 51 . 41 202 . . . 54 . Absorbed by Shields 22 | . . . . . . . . . . . . . . . . . . . . . 22 . . . . . Core Remaining (%) 77 | 100 . 46 . . . 12 57 85 . . . . . . 98 . . . . 80 . . 82 100 96 100 Volleys Fired 418 | 2 68 . 201 6 . 5 78 54 . . . . . . . . 2 . . 1 . . . . 1 . Largest 2 | 2 2 . 2 1 . 2 2 2 . . . . . . . . 1 . . 1 . . . . 1 . Hottest 128 | 90 90 . 123 100 . 100 128 116 . . . . . . . . 80 . . 80 . . . . 65 . Shots Fired 759 | 4 121 . 377 6 . 5 134 108 . . . . . . . . 2 . . 1 . . . . 1 . Gun 682 | 4 120 . 368 . . . 84 105 . . . . . . . . . . . . . . . . 1 . Cannon 41 | . . . . . . . 41 . . . . . . . . . . . . . . . . . . . Launcher 26 | . 1 . 7 . . 4 8 3 . . . . . . . . 2 . . 1 . . . . . . Special 10 | . . . 2 6 . 1 1 . . . . . . . . . . . . . . . . . . . Kinetic 520 | . 61 . 296 . . . 84 79 . . . . . . . . . . . . . . . . . . Thermal 173 | 4 20 . 74 6 . 1 42 26 . . . . . . . . . . . . . . . . . . Explosive 14 | . 1 . 7 . . 1 2 . . . . . . . . . 2 . . 1 . . . . . . Electromagnetic 52 | . 39 . . . . 3 6 3 . . . . . . . . . . . . . . . . 1 . Robot Hit Streak 17 | 3 14 . 17 . . 1 13 10 . . . . . . . . 3 . . 4 . . . . . . Robot Miss Streak 6 | . 6 . 3 . . 1 4 5 . . . . . . . . . . . . . . . . . . Penetration Max 1 | . . . . . . . . 1 . . . . . . . . . . . . . . . . . . Secondary Targets 5 | . 2 . 3 . . . . . . . . . . . . . . . . . . . . . . . Max Gunslinging Chain 1 | . 1 . 1 . . . . . . . . . . . . . . . . . . . . . . . Shots Hit Robots 547 | 3 61 . 263 . . 1 79 77 7 . . . . . . 7 2 . . 1 11 . 9 . 18 8 Core Hits 282 | 2 31 . 96 . . 4 49 56 3 . . . . . . 5 6 . . 3 5 . 5 . 9 8 Critical Hits 15 | . . . 4 . . . 5 3 1 . . . . . . 1 . . . . 1 . . . . . Critical Kills 8 | . . . 2 . . . 2 2 1 . . . . . . . . . . . 1 . . . . . Critical Parts Destroyed 7 | . . . 2 . . . 3 1 . . . . . . . 1 . . . . . . . . . . Melee Attacks 529 | . . . . . . . . 33 32 . 25 17 17 . 15 63 34 1 5 4 73 1 51 15 105 38 Impact . | . . . . . . . . . . . . . . . . . . . . . . . . . . . Slashing 321 | . . . . . . . . 33 32 . 25 17 17 . 15 63 34 1 5 4 73 1 1 . . . Piercing 208 | . . . . . . . . . . . . . . . . . . . . . . . 50 15 105 38 Sneak Attacks 11 | . . . . . . . . 3 1 . . . . . . . . . . . 1 . 1 . 2 3 Combat Hostiles . | . . . . . . . . . . . . . . . . . . . . . . . . . . . Follow-up Attacks . | . . . . . . . . . . . . . . . . . . . . . . . . . . . Damage Inflicted 15429 | 38 963 . 4484 . . 268 1959 2897 526 . . . . . . 395 590 . . 211 536 . 581 . 1158 823 Guns 7090 | 38 818 . 3847 . . . 803 1584 . . . . . . . . . . . . . . . . . . Cannons 670 | . . . . . . . 670 . . . . . . . . . . . . . . . . . . . Explosions 3123 | . 145 . 637 . . 268 471 801 . . . . . . . . 590 . . 211 . . . . . . Melee 4527 | . . . . . . . . 508 526 . . . . . . 395 . . . . 536 . 581 . 1158 823 Ramming 19 | . . . . . . . 15 4 . . . . . . . . . . . . . . . . . . Kinetic 5307 | . 353 . 2992 . . . 803 1159 . . . . . . . . . . . . . . . . . . Thermal 2249 | 38 207 . 855 . . . 670 479 . . . . . . . . . . . . . . . . . . Explosive 2447 | . 99 . 637 . . 172 157 581 . . . . . . . . 590 . . 211 . . . . . . Electromagnetic 880 | . 304 . . . . 96 314 166 . . . . . . . . . . . . . . . . . . Impact . | . . . . . . . . . . . . . . . . . . . . . . . . . . . Slashing 1965 | . . . . . . . . 508 526 . . . . . . 395 . . . . 536 . . . . . Piercing 2562 | . . . . . . . . . . . . . . . . . . . . . . . 581 . 1158 823 Highest Corruption 8 | . . . . 7 7 7 . 5 . . . . . . . . . . . . 8 8 8 1 . . Average Corruption 5 | . . . . 7 7 7 . 3 . . . . . . . . . . . . 6 8 8 1 . . Corruption Purged . | . . . . . . . . . . . . . . . . . . . . . . . . . . . Effects 125 | . . . . 1 16 10 . 27 . . . . . . . . . . . . 35 3 32 1 . . Message Errors 32 | . . . . 1 6 3 . 11 . . . . . . . . . . . . 5 . 5 1 . . Matter Fused 24 | . . . . . 3 1 . 4 . . . . . . . . . . . . 8 2 6 . . . Heat Flow Errors 14 | . . . . . 3 1 . . . . . . . . . . . . . . 5 . 5 . . . Energy Discharges 13 | . . . . . 1 2 . 3 . . . . . . . . . . . . 4 . 3 . . . Data Loss (minor) 17 | . . . . . 1 2 . 4 . . . . . . . . . . . . 4 1 5 . . . Data Loss (major) 5 | . . . . . 2 . . . . . . . . . . . . . . . 2 . 1 . . . Misfires 1 | . . . . . . . . 1 . . . . . . . . . . . . . . . . . . Targeting Errors 18 | . . . . . . . . 4 . . . . . . . . . . . . 7 . 7 . . . Weapon Failures 1 | . . . . . . 1 . . . . . . . . . . . . . . . . . . . . Overload Shots . | . . . . . . . . . . . . . . . . . . . . . . . . . . . Overflow Damage 777 | . 26 . 62 . . 5 9 160 178 . . . . . . 9 38 . . . 14 . 7 . 269 . Projectiles . | . . . . . . . . . . . . . . . . . . . . . . . . . . . Explosions 188 | . 26 . 62 . . 5 9 48 . . . . . . . . 38 . . . . . . . . . Melee 589 | . . . . . . . . 112 178 . . . . . . 9 . . . . 14 . 7 . 269 . Knockbacks . | . . . . . . . . . . . . . . . . . . . . . . . . . . . Impact . | . . . . . . . . . . . . . . . . . . . . . . . . . . . Kinetic . | . . . . . . . . . . . . . . . . . . . . . . . . . . . Secondary . | . . . . . . . . . . . . . . . . . . . . . . . . . . . Self-Inflicted Damage 78 | . 31 . . . . 10 37 . . . . . . . . . . . . . . . . . . . Shots 4 | . 1 . . . . 1 2 . . . . . . . . . . . . . . . . . . . Rammed 2 | . . . . . . . 2 . . . . . . . . . . . . . . . . . . . Targets Rammed 5 | . . . . . . . 3 2 . . . . . . . . . . . . . . . . . . Kicked 3 | . . . . . . . 1 2 . . . . . . . . . . . . . . . . . . Crushed . | . . . . . . . . . . . . . . . . . . . . . . . . . . . Highest Temperature 617 | 60 293 . 148 12 271 128 617 217 . . 9 . . . . . 32 . . 38 257 . 258 52 8 44 Average Temperature 83 | 30 96 . 27 7 124 35 141 76 . . 9 . . . . . 17 . . 24 99 . 87 27 7 25 Received Heat Transfer 2040 | . 336 . 864 . . . 450 153 . . 18 9 . . . . . 9 . 60 33 . . 9 99 . Effects 17 | . 2 . . . 2 . 13 . . . . . . . . . . . . . . . . . . . Shutdowns 4 | . . . . . . . 4 . . . . . . . . . . . . . . . . . . . Energy Bleed 3 | . . . . . 2 . 1 . . . . . . . . . . . . . . . . . . . Interference 2 | . 2 . . . . . . . . . . . . . . . . . . . . . . . . . Matter Decay 1 | . . . . . . . 1 . . . . . . . . . . . . . . . . . . . Short Circuit 1 | . . . . . . . 1 . . . . . . . . . . . . . . . . . . . Damage (minor) 1 | . . . . . . . 1 . . . . . . . . . . . . . . . . . . . Damage (major) 4 | . . . . . . . 4 . . . . . . . . . . . . . . . . . . . Damage (core) 1 | . . . . . . . 1 . . . . . . . . . . . . . . . . . . . Siege Activations . | . . . . . . . . . . . . . . . . . . . . . . . . . . . Robots Corrupted . | . . . . . . . . . . . . . . . . . . . . . . . . . . . Combat Hostiles . | . . . . . . . . . . . . . . . . . . . . . . . . . . . Parts Fried 2 | . 1 . . . . . 1 . . . . . . . . . . . . . . . . . . . Impact Corruptions . | . . . . . . . . . . . . . . . . . . . . . . . . . . . Robots Melted . | . . . . . . . . . . . . . . . . . . . . . . . . . . . Combat Hostiles . | . . . . . . . . . . . . . . . . . . . . . . . . . . . Parts Melted 10 | . 2 . 6 . . . . 2 . . . . . . . . . . . . . . . . . . Heat Transferred 4609 | 99 460 . 1915 . . . 1110 1025 . . . . . . . . . . . . . . . . . . Parts Sabotaged . | . . . . . . . . . . . . . . . . . . . . . . . . . . . Parts Stolen . | . . . . . . . . . . . . . . . . . . . . . . . . . . . Parts Stripped . | . . . . . . . . . . . . . . . . . . . . . . . . . . . Power Chain Reactions 4 | . 1 . . . . . 1 2 . . . . . . . . . . . . . . . . . . Missiles Intercepted . | . . . . . . . . . . . . . . . . . . . . . . . . . . . Alert | -11 -10 -10 -9 -9 -9 -8 -8 -7 -6 -6 -6 -6 -6 -6 -5 -5 -5 -5 -5 -4 -4 -4 -4 -3 -2 -1 ------- Run | Scr Mat Min Mat Min Exi Min Mat Fac Fac Was Fac Low Low Dat Pro Fac Upp Upp War Pro Fac Was Fac Res Res Acc Peak Influence 885 | 5 187 72 693 181 . 100 541 885 742 248 655 . . . . 504 . . . . 109 42 109 433 297 208 Average Influence 195 | 2 74 69 255 179 . 8 295 459 419 222 246 . . . . 45 . . . . 35 26 24 217 127 82 Maximum Alert Level 3 | . . . 2 . . . 2 3 3 1 2 . . . . 2 . . . . . . . 2 1 1 Low Security (%) 60 | 100 100 100 45 100 . 100 22 . . . 25 . . . . 97 . . . . 100 100 100 58 76 96 Level 1 20 | . . . 32 . . . 52 30 67 100 59 . . . . 2 . . . . . . . . 23 3 Level 2 16 | . . . 22 . . . 24 55 10 . 14 . . . . . . . . . . . . 41 . . Level 3 2 | . . . . . . . . 13 21 . . . . . . . . . . . . . . . . . Level 4 . | . . . . . . . . . . . . . . . . . . . . . . . . . . . Level 5 . | . . . . . . . . . . . . . . . . . . . . . . . . . . . High Security . | . . . . . . . . . . . . . . . . . . . . . . . . . . . Max Security . | . . . . . . . . . . . . . . . . . . . . . . . . . . . Squads Dispatched 43 | . 1 . 6 . . . 4 10 6 . 2 . . . . 3 . . . . 4 . 2 2 2 1 Investigation 12 | . . . 3 . . . . 4 2 . 1 . . . . 1 . . . . 1 . . . . . Extermination 15 | . . . . . . . . 3 1 . 1 . . . . 2 . . . . 3 . 2 2 . 1 Reinforcement 10 | . 1 . 2 . . . 2 3 . . . . . . . . . . . . . . . . 2 . Assault 6 | . . . 1 . . . 2 . 3 . . . . . . . . . . . . . . . . . Garrison . | . . . . . . . . . . . . . . . . . . . . . . . . . . . Intercept . | . . . . . . . . . . . . . . . . . . . . . . . . . . . Construction Impeded . | . . . . . . . . . . . . . . . . . . . . . . . . . . . Haulers Reinforced 4 | . . . . . . . . 2 . . . . . . . . . . . . . . . . 2 . Stealth | -11 -10 -10 -9 -9 -9 -8 -8 -7 -6 -6 -6 -6 -6 -6 -5 -5 -5 -5 -5 -4 -4 -4 -4 -3 -2 -1 --------- Run | Scr Mat Min Mat Min Exi Min Mat Fac Fac Was Fac Low Low Dat Pro Fac Upp Upp War Pro Fac Was Fac Res Res Acc Distress Signals 19 | . 2 . 6 . . . 1 . . . 1 . . . . . . . . . 1 . . . 8 . Communications Jammed 28 | . . . . . . . . . . . . . . . . . . . . . 8 . 18 2 . . Distress Signals 28 | . . . . . . . . . . . . . . . . . . . . . 8 . 18 2 . . Times Spotted 294 | . 24 2 89 . . 3 46 26 5 4 7 3 . . 6 8 8 2 . 5 25 5 4 8 8 6 Peak Tracking Total 8 | . 4 2 8 . . 4 8 4 4 4 4 4 . . 4 3 5 2 . 4 8 5 3 2 2 1 Tactical Retreats 36 | . 1 . 8 . . . 3 2 . . . . . . 1 2 4 . . 1 9 . 1 2 2 . Traps | -11 -10 -10 -9 -9 -9 -8 -8 -7 -6 -6 -6 -6 -6 -6 -5 -5 -5 -5 -5 -4 -4 -4 -4 -3 -2 -1 ------- Run | Scr Mat Min Mat Min Exi Min Mat Fac Fac Was Fac Low Low Dat Pro Fac Upp Upp War Pro Fac Was Fac Res Res Acc Traps Triggered 16 | . . . 6 . . . . 2 1 . 2 . . . . . . . . . 3 . 1 1 . . Indirectly . | . . . . . . . . . . . . . . . . . . . . . . . . . . . Trap Hack Attempts . | . . . . . . . . . . . . . . . . . . . . . . . . . . . Triggered . | . . . . . . . . . . . . . . . . . . . . . . . . . . . Disarmed . | . . . . . . . . . . . . . . . . . . . . . . . . . . . Reprogrammed . | . . . . . . . . . . . . . . . . . . . . . . . . . . . Reused . | . . . . . . . . . . . . . . . . . . . . . . . . . . . Traps Extracted . | . . . . . . . . . . . . . . . . . . . . . . . . . . . Installed . | . . . . . . . . . . . . . . . . . . . . . . . . . . . Triggered 9 | . . . . . . . . . . . . . . . 1 . . 1 7 . . . . . . . Machines | -11 -10 -10 -9 -9 -9 -8 -8 -7 -6 -6 -6 -6 -6 -6 -5 -5 -5 -5 -5 -4 -4 -4 -4 -3 -2 -1 ---------- Run | Scr Mat Min Mat Min Exi Min Mat Fac Fac Was Fac Low Low Dat Pro Fac Upp Upp War Pro Fac Was Fac Res Res Acc Machines Disabled 23 | . . . 5 . . . 6 10 . . . . . . . . . 1 . . . . . . . 1 Max in Single Turn 4 | . . . 2 . . . 2 4 . . . . . . . . . 1 . . . . . . . 1 Garrison Access 10 | . . . . . . . . 1 2 . 1 . . . . . . . . . 2 . 1 1 1 1 Machines Sabotaged . | . . . . . . . . . . . . . . . . . . . . . . . . . . . Garrisons Compromised . | . . . . . . . . . . . . . . . . . . . . . . . . . . . Overloaded Fab Kills . | . . . . . . . . . . . . . . . . . . . . . . . . . . . Fab Network Shutdowns 5 | . . . . . . . . 1 1 . 1 . . . . 1 . . . . . . . 1 . . Hacking | -11 -10 -10 -9 -9 -9 -8 -8 -7 -6 -6 -6 -6 -6 -6 -5 -5 -5 -5 -5 -4 -4 -4 -4 -3 -2 -1 --------- Run | Scr Mat Min Mat Min Exi Min Mat Fac Fac Was Fac Low Low Dat Pro Fac Upp Upp War Pro Fac Was Fac Res Res Acc Machines Accessed 115 | . 7 . 11 . 2 . 6 16 6 . 11 1 1 4 . 9 . 1 10 . 10 . 9 3 2 6 Terminals 59 | . 7 . 9 . . . 3 10 3 . 7 . . . . 6 . . . . 4 . 5 1 . 4 Fabricators 10 | . . . . . . . . 4 1 . 2 . . . . 1 . . . . 1 . . 1 . . Repair Stations 9 | . . . 1 . . . . 1 . . . . . . . 2 . . . . 2 . 2 . 1 . Recycling Units 1 | . . . . . . . . . . . . . . . . . . . . . . . 1 . . . Scanalyzers 6 | . . . 1 . . . 2 . . . 1 . . . . . . . . . 1 . . . . 1 Garrison Access 11 | . . . . . . . 1 1 2 . 1 . . . . . . . . . 2 . 1 1 1 1 Total Hacks 429 | . 27 . 46 . 5 . 21 48 26 . 42 1 1 20 . 47 . 1 18 . 41 . 33 23 10 19 Successful 331 | . 19 . 22 . 5 . 13 25 18 . 30 1 1 20 . 44 . 1 18 . 35 . 31 19 10 19 Failed 96 | . 8 . 24 . . . 8 23 7 . 12 . . . . 2 . . . . 6 . 2 4 . . Catastrophic 11 | . 1 . 1 . . . 2 5 . . 2 . . . . . . . . . . . . . . . Database Lockouts 3 | . . . . . . . . . 1 . . . . . . 2 . . . . . . . . . . Manual 197 | . 17 . 20 . 1 . 11 27 13 . 28 . . . . 24 . . 1 . 18 . 14 14 . 9 Terminals 262 | . 27 . 39 . . . 14 34 19 . 30 . . . . 29 . . . . 21 . 19 15 . 15 Fabricators 40 | . . . . . . . . 9 3 . 8 . . . . 10 . . . . 3 . . 7 . . Repair Stations 42 | . . . 3 . . . . 2 . . . . . . . 8 . . . . 9 . 11 . 9 . Recycling Units 1 | . . . . . . . . . . . . . . . . . . . . . . . 1 . . . Scanalyzers 20 | . . . 4 . . . 4 . . . 3 . . . . . . . . . 6 . . . . 3 Garrison Access 18 | . . . . . . . 3 3 4 . 1 . . . . . . . . . 2 . 2 1 1 1 Terminal Hacks 161 | . 11 . 8 . 5 . 4 13 8 . 12 1 1 20 . 17 . 1 18 . 13 . 11 7 . 11 Record 24 | . . . . . 4 . . . . . . . . 4 . . . 1 12 . . . . . . 3 Part Schematic 19 | . . . . . . . . 2 2 . 2 . . 7 . 3 . . . . 3 . . . . . Robot Schematic 6 | . . . . . . . . . . . . . . 6 . . . . . . . . . . . . Robot Analysis 5 | . 3 . . . . . 1 1 . . . . . . . . . . . . . . . . . . Prototype ID Bank 14 | . 4 . 1 . . . . 2 . . . . . 3 . . . . 4 . . . . . . . Open Door 5 | . . . . . . . . . . . . 1 1 . . . . . 2 . . . . . . 1 Level Access Points 5 | . . . . . . . . 1 . . . . . . . . . . . . 1 . 1 1 . 1 Branch Access Points 5 | . . . . . . . 1 1 1 . 1 . . . . 1 . . . . . . . . . . Emergency Access Points 3 | . . . 2 . . . . . . . . . . . . . . . . . . . . 1 . . Machine Index 3 | . . . . . . . . . . . . . . . . . . . . . . . 1 1 . 1 Terminal Index 5 | . 1 . . . . . . . . . 1 . . . . 1 . . . . 1 . 1 . . . Fabricator Index 4 | . . . . . . . . . . . 1 . . . . 1 . . . . 1 . 1 . . . Repair Station Index 1 | . . . . . . . . . . . . . . . . 1 . . . . . . . . . . Scanalyzer Index 1 | . . . . . . . . . . . 1 . . . . . . . . . . . . . . . Garrison Index 2 | . . . . . . . . . . . 1 . . . . . . . . . 1 . . . . . Alert Level 4 | . . . . . . . . 1 1 . . . . . . . . . . . . . 1 . . 1 Unreport Threat 5 | . . . 3 . . . . 2 . . . . . . . . . . . . . . . . . . Locate Traps 18 | . . . . . . . 1 2 1 . 2 . . . . 3 . . . . 2 . 4 1 . 2 Dispatch Records 1 | . 1 . . . . . . . . . . . . . . . . . . . . . . . . . Recall Investigation 2 | . . . . . . . . . . . . . . . . 1 . . . . 1 . . . . . Recall Extermination 9 | . . . . . . . . . 1 . 1 . . . . 2 . . . . 2 . 1 1 . 1 Recall Assault 1 | . . . . . . . . . 1 . . . . . . . . . . . . . . . . . Hauler Manifests 8 | . 1 . 1 . . . 1 1 1 . 1 . . . . 1 . . . . . . . 1 . . Registered Components 1 | . . . . . . . . . . . . . . . . 1 . . . . . . . . . . Registered Prototypes 3 | . 1 . . . . . . . . . 1 . . . . . . . . . . . . 1 . . Zone Layout 6 | . . . 1 . . . . . . . . . . . . 2 . . . . 1 . 1 . . 1 EX-Prototype ID Bank 1 | . . . . . 1 . . . . . . . . . . . . . . . . . . . . . Fabricator Hacks 31 | . . . . . . . . 6 3 . 6 . . . . 9 . . . . 2 . . 5 . . Load Schematic 12 | . . . . . . . . 2 1 . 2 . . . . 4 . . . . 1 . . 2 . . Build 19 | . . . . . . . . 4 2 . 4 . . . . 5 . . . . 1 . . 3 . . Repair Station Hacks 41 | . . . 2 . . . . 2 . . . . . . . 8 . . . . 9 . 11 . 9 . Scan Component 20 | . . . 1 . . . . 1 . . . . . . . 4 . . . . 4 . 5 . 5 . Repair 19 | . . . 1 . . . . 1 . . . . . . . 4 . . . . 4 . 5 . 4 . Refit 2 | . . . . . . . . . . . . . . . . . . . . . 1 . 1 . . . Recycling Unit Hacks 1 | . . . . . . . . . . . . . . . . . . . . . . . 1 . . . Retrieve Matter 1 | . . . . . . . . . . . . . . . . . . . . . . . 1 . . . Scanalyzer 20 | . . . 4 . . . 4 . . . 3 . . . . . . . . . 6 . . . . 3 Insert Component 7 | . . . 2 . . . 2 . . . 1 . . . . . . . . . 1 . . . . 1 Analyze 13 | . . . 2 . . . 2 . . . 2 . . . . . . . . . 5 . . . . 2 Garrison Access Hacks 10 | . . . . . . . . 1 2 . 1 . . . . . . . . . 2 . 1 1 1 1 Seal Access 10 | . . . . . . . . 1 2 . 1 . . . . . . . . . 2 . 1 1 1 1 Unauthorized Hacks 67 | . 8 . 8 . . . 5 3 5 . 8 . . . . 10 . . . . 3 . 7 6 . 4 Terminals 59 | . 8 . 8 . . . 5 2 4 . 6 . . . . 9 . . . . 2 . 7 4 . 4 Track 19 | . 3 . 2 . . . 1 . 1 . 2 . . . . 4 . . . . . . 3 1 . 2 Assimilate 4 | . . . . . . . . 2 1 . . . . . . . . . . . . . . 1 . . Botnet 26 | . 4 . 5 . . . 3 . 1 . 3 . . . . 4 . . . . 1 . 3 1 . 1 Operators 10 | . 1 . 1 . . . 1 . 1 . 1 . . . . 1 . . . . 1 . 1 1 . 1 Fabricators 7 | . . . . . . . . 1 . . 2 . . . . 1 . . . . 1 . . 2 . . Prioritize 1 | . . . . . . . . . . . . . . . . . . . . . . . . 1 . . Siphon 5 | . . . . . . . . . . . 2 . . . . 1 . . . . 1 . . 1 . . Haulers 1 | . . . . . . . . 1 . . . . . . . . . . . . . . . . . . Repair Stations . | . . . . . . . . . . . . . . . . . . . . . . . . . . . Recycling Units . | . . . . . . . . . . . . . . . . . . . . . . . . . . . Scanalyzers . | . . . . . . . . . . . . . . . . . . . . . . . . . . . Garrison Access 1 | . . . . . . . . . 1 . . . . . . . . . . . . . . . . . Watchers 1 | . . . . . . . . . 1 . . . . . . . . . . . . . . . . . Data Cores Recovered . | . . . . . . . . . . . . . . . . . . . . . . . . . . . Used . | . . . . . . . . . . . . . . . . . . . . . . . . . . . Hacking Detections 68 | . 7 . 11 . . . 5 14 5 . 6 . . . . 6 . . . . 5 . 5 . 1 3 Full Trace Events 10 | . 1 . 4 . . . . 3 1 . . . . . . . . . . . 1 . . . . . Feedback Events 1 | . . . . . . . . . . . . . . . . . . . . . 1 . . . . . Hackware Fried 1 | . . . . . . . . . . . . . . . . . . . . . 1 . . . . . Feedback Blocked . | . . . . . . . . . . . . . . . . . . . . . . . . . . . Robot Schematics Acquired 6 | . . . . . . . . . . . . . . 6 . . . . . . . . . . . . Robots Built . | . . . . . . . . . . . . . . . . . . . . . . . . . . . Matter . | . . . . . . . . . . . . . . . . . . . . . . . . . . . Time . | . . . . . . . . . . . . . . . . . . . . . . . . . . . Total Robot Build Rating . | . . . . . . . . . . . . . . . . . . . . . . . . . . . Part Schematics Acquired 26 | . . . 2 . . . 2 2 2 . 3 . . 7 . 3 . . . . 4 . . . . 1 Parts Built 16 | . . . . . . . . 3 2 . 3 . . . . 4 . . . . 1 . . 3 . . Matter 3304 | . . . . . . . . 657 380 . 530 . . . . 785 . . . . 213 . . 739 . . Time 1558 | . . . . . . . . 348 94 . 159 . . . . 544 . . . . 152 . . 261 . . Total Part Build Rating 85 | . . . . . . . . 9 10 . 18 . . . . 24 . . . . 5 . . 19 . . Parts Repaired 19 | . . . 1 . . . . 1 . . . . . . . 4 . . . . 4 . 5 . 4 . Time 576 | . . . 26 . . . . 32 . . . . . . . 87 . . . . 82 . 257 . 92 . Parts Recycled . | . . . . . . . . . . . . . . . . . . . . . . . . . . . Recycled Matter . | . . . . . . . . . . . . . . . . . . . . . . . . . . . Retrieved Matter . | . . . . . . . . . . . . . . . . . . . . . . . . . . . Retrieved Components . | . . . . . . . . . . . . . . . . . . . . . . . . . . . Parts Scanalyzed 7 | . . . 2 . . . 2 . . . 1 . . . . . . . . . 1 . . . . 1 Part Schematics Acquired 7 | . . . 2 . . . 2 . . . 1 . . . . . . . . . 1 . . . . 1 Parts Damaged 2 | . . . 1 . . . 1 . . . . . . . . . . . . . . . . . . . Bothacking | -11 -10 -10 -9 -9 -9 -8 -8 -7 -6 -6 -6 -6 -6 -6 -5 -5 -5 -5 -5 -4 -4 -4 -4 -3 -2 -1 ------------ Run | Scr Mat Min Mat Min Exi Min Mat Fac Fac Was Fac Low Low Dat Pro Fac Upp Upp War Pro Fac Was Fac Res Res Acc Used RIF Installer . | . . . . . . . . . . . . . . . . . . . . . . . . . . . Robots Hacked . | . . . . . . . . . . . . . . . . . . . . . . . . . . . Non-combat . | . . . . . . . . . . . . . . . . . . . . . . . . . . . Combat . | . . . . . . . . . . . . . . . . . . . . . . . . . . . Robot Hacks Applied . | . . . . . . . . . . . . . . . . . . . . . . . . . . . Relay Couplers Released . | . . . . . . . . . . . . . . . . . . . . . . . . . . . Robots Rewired . | . . . . . . . . . . . . . . . . . . . . . . . . . . . Allies Hacked 1 | . . . . . . . . 1 . . . . . . . . . . . . . . . . . . Hacks Repelled . | . . . . . . . . . . . . . . . . . . . . . . . . . . . Allies | -11 -10 -10 -9 -9 -9 -8 -8 -7 -6 -6 -6 -6 -6 -6 -5 -5 -5 -5 -5 -4 -4 -4 -4 -3 -2 -1 -------- Run | Scr Mat Min Mat Min Exi Min Mat Fac Fac Was Fac Low Low Dat Pro Fac Upp Upp War Pro Fac Was Fac Res Res Acc Total Allies 9 | . . 3 . . . . . 2 1 . . . . . 1 . . . . . . 1 . 1 . . Largest Group 3 | . . 3 . . . . . 1 1 1 . . . . 1 . . . . . . 1 . 1 . . Highest-Rated Group 94 | . . 40 . . . . . 26 10 10 . . . . 94 . . . . . . 46 . 26 . . Highest-Rated Ally 94 | . . 16 . . . . . 26 10 10 . . . . 94 . . . . . . 46 . 26 . . Total Orders 3 | . . . . . . . . 1 2 . . . . . . . . . . . . . . . . . STAY 1 | . . . . . . . . . 1 . . . . . . . . . . . . . . . . . GOTO 1 | . . . . . . . . 1 . . . . . . . . . . . . . . . . . . ROAM 1 | . . . . . . . . . 1 . . . . . . . . . . . . . . . . . Ally Attacks 7 | . . . . . . . . . . . . . . . 2 . . . . . . 5 . . . . Total Damage 198 | . . . . . . . . . . . . . . . 95 . . . . . . 103 . . . . Kills . | . . . . . . . . . . . . . . . . . . . . . . . . . . . Allies Corrupted . | . . . . . . . . . . . . . . . . . . . . . . . . . . . Allies Melted 1 | . . . . . . . . . . . . . . . 1 . . . . . . . . . . . Intel | -11 -10 -10 -9 -9 -9 -8 -8 -7 -6 -6 -6 -6 -6 -6 -5 -5 -5 -5 -5 -4 -4 -4 -4 -3 -2 -1 ------- Run | Scr Mat Min Mat Min Exi Min Mat Fac Fac Was Fac Low Low Dat Pro Fac Upp Upp War Pro Fac Was Fac Res Res Acc Robot Analysis Total 5 | . 3 . . . . . 1 1 . . . . . . . . . . . . . . . . . . Derelict Logs Recovered 7 | . . 1 . 1 . . . . . . . . 1 . . . 1 2 . 1 . . . . . . Drone Launches . | . . . . . . . . . . . . . . . . . . . . . . . . . . . Drone Recoveries . | . . . . . . . . . . . . . . . . . . . . . . . . . . . Exploration | -11 -10 -10 -9 -9 -9 -8 -8 -7 -6 -6 -6 -6 -6 -6 -5 -5 -5 -5 -5 -4 -4 -4 -4 -3 -2 -1 ------------- Run | Scr Mat Min Mat Min Exi Min Mat Fac Fac Was Fac Low Low Dat Pro Fac Upp Upp War Pro Fac Was Fac Res Res Acc Turns Passed 19643 | 87 1423 416 2702 344 577 271 1343 2480 447 20 465 278 250 31 155 1225 606 152 508 268 1299 48 1026 685 1709 828 Spaces Moved 22159 | 55 744 275 1287 243 357 248 854 2692 946 76 1023 504 435 87 327 1308 954 390 914 381 2598 99 1195 1036 1938 1193 Core 10 | 7 . . . 3 . . . . . . . . . . . . . . . . . . . . . . Treads 368 | . . . 9 . 357 2 . . . . . . . . . . . . . . . . . . . . Legs 3344 | 48 744 275 230 . . 246 854 947 . . . . . . . . . . . . . . . . . . Wheels 1288 | . . . 1048 240 . . . . . . . . . . . . . . . . . . . . . . Hover . | . . . . . . . . . . . . . . . . . . . . . . . . . . . Flight 17149 | . . . . . . . . 1745 946 76 1023 504 435 87 327 1308 954 390 914 381 2598 99 1195 1036 1938 1193 Fastest Speed 16 | 50 120 150 120 120 160 90 85 26 26 26 26 26 26 26 26 26 26 26 26 26 24 27 20 20 16 16 Average Speed 49 | 114 148 150 135 129 160 90 105 58 26 26 26 26 26 26 26 26 26 26 26 26 27 27 28 27 24 20 Slowest Speed 850 | 150 150 150 270 850 160 160 146 120 26 26 26 27 26 26 26 26 26 26 99 26 30 29 29 29 29 21 Overloaded Moves 178 | . . . . . . . 41 10 . . . . . . . . . . . . 24 . 22 59 4 18 Propulsion Burnouts . | . . . . . . . . . . . . . . . . . . . . . . . . . . . Robots Hopped 70 | . . . . . . . . 18 2 . 7 . . . . 2 . . . 2 22 . 1 1 2 13 Cave-ins Triggered 1 | . . . . 1 . . . . . . . . . . . . . . . . . . . . . . Exploration Rate (%) 51 | 4 95 36 89 51 78 68 62 61 18 82 28 61 49 69 48 23 70 53 91 45 39 74 27 17 29 24 Regions Visited 26 Branch Regions 12 Pre-discovered Areas 2 | . . . . 1 1 . . . . . . . . . . . . . . . . . . . . . Known Exits Taken 7 | . . . . . . . . 1 . . 1 . 1 . . 1 . 1 . . . . 1 1 . . Unknown Exits Taken 15 | 1 1 1 1 1 1 1 1 . . . . 1 . 1 1 . 1 . 1 1 . . . . 1 . Scrap Searched 12 | . . . . 2 . 1 . . . . . 4 1 . . . 3 1 . . . . . . . . Spaces Dug 444 | . . . 8 6 . 1 1 29 22 . 24 17 17 . 15 48 34 . 2 4 58 1 38 13 81 25 Terrain Destroyed 614 | . 9 . 41 6 . 11 22 86 22 . 24 17 17 . 15 48 62 . 2 16 58 1 38 13 81 25 Melee 428 | . . . . . . . . 29 22 . 24 17 17 . 15 48 34 . 2 4 58 1 38 13 81 25 Projectile 13 | . . . 2 6 . 1 2 2 . . . . . . . . . . . . . . . . . . AOE 173 | . 9 . 39 . . 10 20 55 . . . . . . . . 28 . . 12 . . . . . . Actions | -11 -10 -10 -9 -9 -9 -8 -8 -7 -6 -6 -6 -6 -6 -6 -5 -5 -5 -5 -5 -4 -4 -4 -4 -3 -2 -1 --------- Run | Scr Mat Min Mat Min Exi Min Mat Fac Fac Was Fac Low Low Dat Pro Fac Upp Upp War Pro Fac Was Fac Res Res Acc Total 29040 | 72 941 279 1900 263 364 281 1169 3417 1083 75 1168 613 537 94 366 2060 1240 436 1171 535 3030 118 1782 1404 2961 1681 Wait 5377 | 6 98 3 290 9 . 20 142 560 93 . 106 82 84 8 25 666 245 41 235 143 319 11 512 316 902 461 Move 21997 | 54 743 274 1286 241 356 247 853 2655 942 75 1008 503 434 86 326 1303 953 389 913 376 2555 98 1192 1033 1933 1169 Hop 66 | . . . . . . . . 18 2 . 7 . . . . 2 . . . 2 21 . 1 1 2 10 Pick Up 136 | 4 13 . 32 1 2 . 28 17 4 . 6 . . . . 5 . . . . 9 1 6 7 . 1 Fast Attach 107 | 6 1 . 22 . . . 8 12 4 . 5 5 1 . . 5 1 1 8 1 10 2 4 1 10 . Attach 73 | . 3 2 17 1 3 . 8 9 . . . . . . . 4 1 . . 2 14 1 1 3 3 1 Detach 39 | . . . 5 . 2 . 2 4 1 . 3 . . . . 1 1 . . . 9 2 4 2 3 . Swap 100 | . 9 . 18 2 . 9 13 16 . . 1 2 . . . 7 2 3 2 5 2 . 5 2 1 1 Drop 161 | . 6 . 29 2 1 . 34 37 5 . 7 4 1 . . 4 1 1 8 1 5 2 6 6 1 . Fire 418 | 2 68 . 201 6 . 5 78 54 . . . . . . . . 2 . . 1 . . . . 1 . Melee 529 | . . . . . . . . 33 32 . 25 17 17 . 15 63 34 1 5 4 73 1 51 15 105 38 Ram . | . . . . . . . . . . . . . . . . . . . . . . . . . . . Kick 5 | . . . . . . . 3 2 . . . . . . . . . . . . . . . . . . Crush . | . . . . . . . . . . . . . . . . . . . . . . . . . . . Escape Stasis 32 | . . . . 1 . . . . . . . . . . . . . . . . 13 . . 18 . . Rewire . | . . . . . . . . . . . . . . . . . . . . . . . . . . . Trap . | . . . . . . . . . . . . . . . . . . . . . . . . . . . Miscellaneous . | . . . . . . . . . . . . . . . . . . . . . . . . . . . Route ------- -11/Scrapyard -10/Materials (discovered 4 exits: *Mat x3 / [*Min]) -10/Mines -9/Materials (discovered 5 exits: *Mat x3 / [*Min x2]) -9/Mines (discovered 2 exits: *Mat / *Exi) -9/Exiles -8/Mines -8/Materials (discovered 2 exits: *Fac x2) -7/Factory (discovered 8 exits: *Fac x4 / *Sto x2 / *Low x2) -6/Factory (discovered 3 exits: *Fac / Low x2) -6/Waste -6/Factory (discovered 3 exits: *Fac / *Low x2) -6/Lower Caves -6/Lower Caves -6/Data Miner -5/Proximity Caves -5/Factory (discovered 5 exits: Fac / *Upp x2 / *Ext x2) -5/Upper Caves -5/Upper Caves -5/Warlord -4/Proximity Caves -4/Factory (discovered 5 exits: Res x4 / [*Upp]) -4/Waste -4/Factory (discovered 4 exits: *Res x4) -3/Research (discovered 4 exits: *Res x3 / *Arm) -2/Research (discovered 2 exits: *Acc / *Tes) -1/Access To Epsilon Eridani History --------- Turn | Location | Event 4 | -11/Scrapyard | Discovered new exit (range 15) 88 | -11/Scrapyard | Entered Materials 320 | -10/Materials | Build established: Mutant 331 | -10/Materials | Discovered new exit (range 7) 462 | -10/Materials | Discovered new exit (range 15) 878 | -10/Materials | Discovered new exit (range 14) 1277 | -10/Materials | Discovered new exit (range 7) 1511 | -10/Materials | Entered Mines 1535 | -10/Mines | Assisted by bots powering up and referring to "LRC-V3" 1604 | -10/Mines | Learned Materials terminal intel 1885 | -10/Mines | Discovered new exit (range 6) 1917 | -10/Mines | Assembled infested the area 1919 | -10/Mines | Core integrity fell below 50% 1927 | -10/Mines | Entered Materials 1927 | -9/Materials | Evolved 2 slots: Propulsion x1, Utility x1 1928 | -9/Materials | Loaded intel: 11 terminal locations 1953 | -9/Materials | Lost 4 parts (1p2n1w) 2213 | -9/Materials | Repaired Aluminum Leg 3085 | -9/Materials | Discovered new exit (range 14) 3527 | -9/Materials | First assault squad dispatched 3716 | -9/Materials | Lost 4 parts (2n1u1w) 3733 | -9/Materials | Discovered new exit (range 15) 4048 | -9/Materials | Discovered new exit (range 5) 4285 | -9/Materials | Discovered new exit (range 16) 4287 | -9/Materials | Lost 3 parts (2n1w) 4342 | -9/Materials | Discovered new exit (range 15) 4573 | -9/Materials | Core integrity fell below 50% 4606 | -9/Materials | Lost 3 parts (1n1u1w) 4629 | -9/Materials | Entered Mines 4791 | -9/Mines | Received a Rocket Launcher from a helpful Derelict 4864 | -9/Mines | Build established: Scavenger-Mutant 4896 | -9/Mines | Discovered new exit (range 5) 4948 | -9/Mines | Deemed a non-threat by the Exiles lab entrance 4948 | -9/Mines | Discovered new exit (range 4) 4954 | -9/Mines | Crushed by falling debris 4955 | -9/Mines | Core integrity fell below 20% 4973 | -9/Mines | Entered Exiles 5015 | -9/Exiles | Met 8R-AWN 5041 | -9/Exiles | Met EX-HEX 5092 | -9/Exiles | Met EX-BIN 5115 | -9/Exiles | Aligned with FarCom system 5116 | -9/Exiles | Given EX-Vault access code 5161 | -9/Exiles | Opened EX-Vault 5174 | -9/Exiles | Found Potential Leg 5177 | -9/Exiles | Found Potential Leg 5213 | -9/Exiles | Warned to stay clear of 0b10 Research branches 5258 | -9/Exiles | Met EX-DEC 5268 | -9/Exiles | Learned location of Zion (-7) 5331 | -9/Exiles | Visited The Gauntlet 5525 | -9/Exiles | Discovered new exit (range 14) 5550 | -9/Exiles | Left Exiles lab with Potential Leg 5550 | -9/Exiles | Entered Mines 5807 | -8/Mines | Discovered new exit (range 14) 5821 | -8/Mines | Entered Materials 5821 | -8/Materials | Evolved 2 slots: Utility x2 5863 | -8/Materials | Build established: Mutant 6259 | -8/Materials | Build established: Hauler-Mutant 6293 | -8/Materials | Discovered new exit (range 5) 6444 | -8/Materials | Discovered new exit (range 9) 7021 | -8/Materials | First assault squad dispatched 7164 | -8/Materials | Entered Factory 7164 | -7/Factory | Evolved 2 slots: Propulsion x1, Utility x1 7286 | -7/Factory | Repaired Hrd. Light Armor Plating? 8245 | -7/Factory | Build established: Hacker-Mutant 8607 | -7/Factory | Fabricated Imp. VTOL Module (x1) 8729 | -7/Factory | Fabricated Imp. VTOL Module? 8875 | -7/Factory | Fabricated Imp. VTOL Module (x1) 9029 | -7/Factory | Identified exit to Storage 9029 | -7/Factory | Identified exit to Lower Caves 9044 | -7/Factory | Local fabrication network quarantined 9048 | -7/Factory | Discovered new exit (range 9) 9172 | -7/Factory | Build established: Hacker-Sprinter 9508 | -7/Factory | Identified exit to Factory 9644 | -7/Factory | Entered another Factory area 9644 | -6/Factory | Accompanied by 1 ally 9644 | -6/Factory | Evolved 2 slots: Utility x2 9747 | -6/Factory | Identified exit to Lower Caves 9923 | -6/Factory | Fabricated Imp. Hacking Suite? 9946 | -6/Factory | Local fabrication network quarantined 9980 | -6/Factory | Fabricated Imp. Hacking Suite (x1) 9994 | -6/Factory | First assault squad dispatched 10004 | -6/Factory | Discovered new exit (range 8) 10060 | -6/Factory | Build established: Hacker-Scout 10065 | -6/Factory | Central database locked down 10091 | -6/Factory | Manually triggered Chute Trap 10091 | -6/Factory | Sucked down chute 10091 | -6/Factory | Entered Waste 10092 | -6/Waste | Spotted C-40 Crusher 10094 | -6/Waste | Spotted C-40 Crusher 10096 | -6/Waste | Spotted C-40 Crusher 10100 | -6/Waste | 1 allies followed down the chute 10104 | -6/Waste | Spotted C-40 Crusher 10104 | -6/Waste | Spotted C-40 Crusher 10108 | -6/Waste | Spotted C-40 Crusher 10109 | -6/Waste | Discovered new exit (range 10) 10111 | -6/Waste | Entered Factory 10236 | -6/Factory | Discovered new exit (range 10) 10399 | -6/Factory | Fabricated Adv. System Shield (x1) 10453 | -6/Factory | Fabricated Adv. System Shield (x1) 10469 | -6/Factory | Fabricated Adv. System Shield (x1) 10508 | -6/Factory | Local fabrication network quarantined 10559 | -6/Factory | Spotted B-75 Beast 10576 | -6/Factory | Entered Lower Caves 10847 | -6/Lower Caves | Discovered new exit (range 16) 10854 | -6/Lower Caves | Entered another Lower Caves area 10874 | -6/Lower Caves | Build established: Hacker-Sprinter 11019 | -6/Lower Caves | Identified exit to Data Miner 11104 | -6/Lower Caves | Entered Data Miner 11104 | -6/Data Miner | Discovered new exit (range 6) 11109 | -6/Data Miner | Met Data Miner 11120 | -6/Data Miner | Received God Mode back door access code from Data Miner 11135 | -6/Data Miner | Entered Proximity Caves 11193 | -5/Proximity Caves | Escorted by Enhanced Grunt 11287 | -5/Proximity Caves | Discovered new exit (range 11) 11290 | -5/Proximity Caves | Entered Factory 11290 | -5/Factory | Evolved 2 slots: Utility x2 11425 | -5/Factory | Discovered new exit (range 11) 11478 | -5/Factory | Identified exit to Upper Caves 11478 | -5/Factory | Identified exit to Extension 11478 | -5/Factory | Central database locked down 11587 | -5/Factory | Build established: Wizard-Scout 11688 | -5/Factory | Fabricated Exp. Utility Shielding (x1) 11859 | -5/Factory | Fabricated Mni. Smartbomb Launcher? 11984 | -5/Factory | Build established: Wizard-Sprinter 11987 | -5/Factory | Fabricated Adv. Transmission Jammer? 12104 | -5/Factory | Fabricated Adv. Hacking Suite (x1) 12155 | -5/Factory | Repaired Imp. VTOL Module 12177 | -5/Factory | Repaired Imp. VTOL Module 12263 | -5/Factory | Discovered new exit (range 11) 12351 | -5/Factory | Repaired Greatsword 12377 | -5/Factory | Repaired Imp. Flight Unit 12480 | -5/Factory | Local fabrication network quarantined 12515 | -5/Factory | Entered Upper Caves 12851 | -5/Upper Caves | Learned Factory emergency access door positions 13095 | -5/Upper Caves | Discovered new exit (range 16) 13121 | -5/Upper Caves | Entered another Upper Caves area 13200 | -5/Upper Caves | Learned 12 Factory zone layouts 13246 | -5/Upper Caves | Attracted the attention of an 0b10 checkpoint 13258 | -5/Upper Caves | Identified exit to Warlord 13273 | -5/Upper Caves | Entered Warlord 13366 | -5/Warlord | Met Warlord 13385 | -5/Warlord | Found Prototype Device 13385 | -5/Warlord | Identified Thermal Barrier 13390 | -5/Warlord | Found Prototype Device 13390 | -5/Warlord | Identified Exp. Phase Shifter 13391 | -5/Warlord | Warlord's base attacked by MAIN.C 13422 | -5/Warlord | Learned Armory trap positions 13423 | -5/Warlord | Learned Quarantine security intel 13423 | -5/Warlord | Learned Factory repair station intel 13423 | -5/Warlord | Learned Armory garrison access intel 13423 | -5/Warlord | Learned 4 Armory zone layouts 13423 | -5/Warlord | Learned 4 Research zone layouts 13423 | -5/Warlord | Learned 4 Research zone layouts 13434 | -5/Warlord | Found Prototype Device 13434 | -5/Warlord | Identified Minesniffer Drone Bay 13741 | -5/Warlord | Warlord forces counterattacked 13759 | -5/Warlord | Opened side exit 13779 | -5/Warlord | Discovered new exit (range 9) 13781 | -5/Warlord | Entered Proximity Caves 13989 | -4/Proximity Caves | Learned Research garrison access intel 14047 | -4/Proximity Caves | Discovered new exit (range 8) 14049 | -4/Proximity Caves | Entered Factory 14049 | -4/Factory | Evolved 2 slots: Utility x2 14050 | -4/Factory | Identified exit to Research 14052 | -4/Factory | Loaded intel: 5 repair station locations 14090 | -4/Factory | Repaired Greatsword 14756 | -4/Factory | Lost 4 parts (2n1u1w) 15050 | -4/Factory | Discovered new exit (range 4) 15095 | -4/Factory | Repaired Imp. VTOL Module 15117 | -4/Factory | Repaired Adv. Transmission Jammer 15138 | -4/Factory | Repaired Imp. VTOL Module 15142 | -4/Factory | Adv. Hacking Suite fried by hacking feedback 15223 | -4/Factory | Fabricated Exp. Utility Shielding? 15245 | -4/Factory | Spotted B-86 Titan 15348 | -4/Factory | Manually triggered Chute Trap 15348 | -4/Factory | Sucked down chute 15348 | -4/Factory | Entered Waste 15349 | -4/Waste | Met a frightened Derelict 15351 | -4/Waste | Spotted C-40 Crusher 15351 | -4/Waste | Spotted C-40 Crusher 15352 | -4/Waste | Spotted C-40 Crusher 15360 | -4/Waste | Found Broken Enh. Force Lance 15365 | -4/Waste | Spotted C-40 Crusher 15366 | -4/Waste | Spotted C-40 Crusher 15373 | -4/Waste | Spotted C-40 Crusher 15376 | -4/Waste | Discovered new exit (range 10) 15395 | -4/Waste | Found Broken Fusion Bomb Launcher 15396 | -4/Waste | Entered Factory 15397 | -4/Factory | Discovered exit to Research (range 10) 15497 | -4/Factory | Repaired Broken Enh. Force Lance? 15556 | -4/Factory | Repaired Broken Fusion Bomb Launcher 15607 | -4/Factory | Repaired Power Sword 15777 | -4/Factory | Repaired Broken Imp. VTOL Module 15874 | -4/Factory | Repaired Impulse Thruster 16046 | -4/Factory | Spotted B-86 Titan 16422 | -4/Factory | Entered Research 16422 | -3/Research | Evolved 2 slots: Utility x2 16423 | -3/Research | Identified exit to Armory 16425 | -3/Research | Loaded intel: 4 garrison access locations 16606 | -3/Research | Fabricated Mni. Fusion Reactor (x1) 16619 | -3/Research | Identified exit to Research 16692 | -3/Research | Fabricated Exp. Cesium-ion Thruster? 16743 | -3/Research | Found Enh. Force Lance 16824 | -3/Research | Local fabrication network quarantined 16851 | -3/Research | Fabricated Exp. Cesium-ion Thruster (x1) 17107 | -3/Research | Entered another Research area 17107 | -2/Research | Warlord forces began assault on 0b10 17107 | -2/Research | Evolved 2 slots: Utility x2 17132 | -2/Research | Repaired Enh. Force Lance 17159 | -2/Research | Repaired Lyr. Light Armor Plating 17197 | -2/Research | Repaired Cld. Impulse Thruster 17217 | -2/Research | Research machine network offline 17218 | -2/Research | Repaired Imp. VTOL Module 17322 | -2/Research | Borebot progress halted 17380 | -2/Research | Borebot progress halted 17978 | -2/Research | Spotted Striker 18067 | -2/Research | Discovered new exit (range 9) 18103 | -2/Research | Identified exit to Testing 18349 | -2/Research | Borebot progress halted 18478 | -2/Research | Warlord destroyed during the assault 18711 | -2/Research | Discovered new exit (range 6) 18816 | -2/Research | Entered Access 18816 | -1/Access | Evolved 2 slots: Utility x2 18860 | -1/Access | Identified exit to Surface 19644 | *** | Escaped! Last Messages --------------- 19203_ K-01 Serf collects debris. 19217_ R-10 Processor collects Unknown Hover Unit. 19241_ ZO-5RH(B) system terminally corrupted. 19261_ U-05 Engineer builds a Wall. 19338_ Connecting with Terminal... >>Trojan(Track) Trojan loaded successfully. Testing... Tracking enabled and active. 19359_ K-01 Serf cleans the Terminal. 19474_ W-44 Eye destroyed. 19476_ U-05 Engineer builds a Wall. 19477_ K-01 Serf collects debris. 19496_ R-10 Processor collects Adv. Sensor Array. 19499_ R-10 Processor collects Lgt. Antimatter Reactor. 19637_ Connecting with Terminal... >>Open Sealed Barrier opened. 19638_ The Access Shell folds into the floor. 19640_ Sealed Heavy Doors breached. Map ----- +----------------------------------------------------+ | ?????????????????????????????????????????????????? | | ?????????????????????????????????????????????????? | | ?????????????????????????????????????????????????? | | ?????????????????????????????????????????????????? | | ?????????????????????????????????????????????????? | | ?????????????????????????????????????????????????? | | ?????????????????????????????????????????????????? | | ?????????????????????????????????????????????????? | | ?????????????????????????????Y???????????????????? | | ?????????????????????????????????????????????????? | | ?????????????????????????????????????????????????? | | ?????????????????????????????????????????????????? | | ??????????? ?????????????????????????????????????? | | ??????????# ????????????????????????????????????? | | ??????????# ????????????????????????????????????? | | ??????????# ????????????????????????????????????? | | #######???# ????????????????????????????????????? | | #??# #???????????????????????????????????? | | #??# #?????###???????????????????????????? | | #??# ####### ##########??????????????????? | | #??# """T""" "??????????????????? | | #??# """ """ "????BB????????????? | | #??# "????BB????????????? | | ?? !#??# "??????????????????? | | ???? #??# "" "??????????????????? | | ######+#??# @" "??????????????????? | | #??# ""?????????????????? | | ##### #??# "???BB????????????? | | #???# #??# ""???BB????????????? | | #???# #??# "??????????????????? | | #???# #??# ####### ##########??????????????????? | | #???# #??# #?????###???????????????????????????? | | #???# #??# #???????????????????????????????????? | | #???# #??# #???????????????????????????????????? | | +##### #??# #???????????????????????????????????? | | + ##?# #???????????????????????????????????? | | ######### ########????????????????????????????? | | #???## ## #????????????????????????????? | | #????## # +????????????????????????????? | | ########"###### #????????????????????????????? | | # #?? #????????????????????????????? | | # ! #????????????????????????????????? | | # [ #????????????????????????????????? | | # #????????????????????????????????? | | # #????????????????????????????????? | | # #????????????????????????????????? | | ###########/###????????????????????????????????? | | ##??????????? ?????????????????????????????????? | | ????????????? ????????????????????????????????? | | ?????????????? ??????????????????????????????? | +----------------------------------------------------+ Best States ------------- Heat Dissipation 52 Energy Generation 27 Energy Capacity 280 Matter Stores 300 Matter Capacity 300 Sight Range 22 Robot Scan Range 22 Terrain Scan Density 10 Jamming Range 16 Cloak Strength 2 Power Amplification 30 Additional Mass Support 9 Armor Coverage 300 Propulsion Shielding 66 Utility Shielding 90 Evasion (%) 66 Recoil Reduction 3 Offensive Hacking 88 Defensive Hacking 40 Item Schematics ----------------- Imp. Flight Unit | -9/Materials | Scanalyzed Shock Bomb Launcher | -9/Materials | Scanalyzed Imp. VTOL Module | -8/Materials | Scanalyzed Imp. Light Armor Plating | -8/Materials | Scanalyzed Imp. Utility Shielding | -7/Factory | Hacked Imp. Propulsion Shielding | -7/Factory | Hacked Imp. Hacking Suite | -6/Factory | Hacked Imp. System Shield | -6/Factory | Hacked Adv. System Shield | -6/Factory | Hacked Exp. Propulsion Shielding | -6/Factory | Hacked Enh. Nuclear Core | -6/Factory | Scanalyzed Combat Drone Bay | -6/Data Miner | Free Lgt. Regenerative Plating | -6/Data Miner | Free Triangulator | -6/Data Miner | Free Tactical Coordination Suite | -6/Data Miner | Free Cloaking Device | -6/Data Miner | Free Mni. Smartbomb Launcher | -6/Data Miner | Free Plasma Sword | -6/Data Miner | Free Adv. Hacking Suite | -5/Factory | Hacked Adv. Transmission Jammer | -5/Factory | Hacked Exp. Utility Shielding | -5/Factory | Hacked Adv. Power Amplifier | -4/Factory | Scanalyzed Enh. Force Lance | -4/Factory | Hacked Exp. Cesium-ion Thruster | -4/Factory | Hacked Mni. Fusion Reactor | -4/Factory | Hacked Diametric Drive | -1/Access | Scanalyzed Robot Schematics ------------------ S-27 Virus | -6/Data Miner | Free G-50 Soldier | -6/Data Miner | Free X-72 Disruptor | -6/Data Miner | Free P-70 Sage | -6/Data Miner | Free I-36 Angel | -6/Data Miner | Free I-47 Archangel | -6/Data Miner | Free Fabricated ------------ Imp. VTOL Module | x1 | -7/Factory Imp. VTOL Module | x1 | -7/Factory Imp. VTOL Module | x1 | -7/Factory Imp. Hacking Suite | x1 | -6/Factory Imp. Hacking Suite | x1 | -6/Factory Adv. System Shield | x1 | -6/Factory Adv. System Shield | x1 | -6/Factory Adv. System Shield | x1 | -6/Factory Exp. Utility Shielding | x1 | -5/Factory Mni. Smartbomb Launcher | x1 | -5/Factory Adv. Transmission Jammer | x1 | -5/Factory Adv. Hacking Suite | x1 | -5/Factory Exp. Utility Shielding | x1 | -4/Factory Mni. Fusion Reactor | x1 | -3/Research Exp. Cesium-ion Thruster | x1 | -3/Research Exp. Cesium-ion Thruster | x1 | -3/Research Alien Tech Used ----------------- None Achievements -------------- Below Safety First Challenges ------------ None Game ------ Seed TerrainPointThruster Manual? 0 Play Time 07:29:41 Cumulative 157.9 hours Start 2020.06.13 @ 15:38:11 End 2020.06.16 @ 00:44:35 Sessions 5 Manual Loads 0 Difficulty Rogue Special Mode None Game No. 90 Rogue 90 Adventurer 0 Explorer 0 Win Type 0 Total 3 Types 2/0/1/0/0/0/0 Lore% 57 Gallery% 73 Achievement% 60 Wizard Run 0 Options --------- ASCII 0 Keyboard 1 Movement Numpad Keybinds 0 Fullscreen 2 Font 18/X11 Map View 76x50 Tactical HUD 1 Map Filters NONE Filters NONE Steam 1 RUN: a5c033f0-b8f4-4cc0-b5e8-d877279160ed